bitfinex-derivatives/quotes_ETHF0:USTF0_20251225
["timestamp","ask_amount","ask_price","bid_price","bid_amount"]
[1766647536878,1.0114747,2941.2,2940.5,3.402]
[1766647537079,1.0114747,2941.1,2940.5,3.402]
[1766647537287,3.402,2941.3,2940.5,3.402]
[1766647537583,1.01146641,2941.2,2940.5,3.402]
[1766647537784,1.01146641,2941.1,2940.5,3.402]
[1766647537983,3.402,2941.3,2940.5,3.402]
[1766647538283,1.01146609,2941.2,2940.5,3.402]
[1766647538483,1.01146609,2941.1,2940.5,3.402]
[1766647538686,3.402,2941.3,2940.5,3.402]
[1766647538887,1.01145811,2941.2,2940.5,3.402]
[1766647539080,1.01145811,2941.1,2940.5,3.402]
[1766647539280,3.402,2941.3,2940.5,3.402]
[1766647539480,1.01145145,2941.2,2940.5,3.402]
[1766647539681,1.01145145,2941.1,2940.5,3.402]
[1766647539980,3.402,2941.3,2940.5,3.402]
[1766647540188,1.01145145,2941.2,2940.5,3.402]
[1766647540380,1.01145145,2941.1,2940.5,3.402]
[1766647540582,3.402,2941.3,2940.5,3.402]
[1766647540781,1.01144608,2941.2,2940.5,3.402]
[1766647541079,1.01144608,2941.1,2940.5,3.402]
[1766647541276,3.402,2941.3,2940.5,3.402]
[1766647541487,1.01144186,2941.2,2940.5,3.402]
[1766647541689,1.01144186,2941.1,2940.5,3.402]
[1766647541890,3.402,2941.3,2940.5,3.402]
[1766647542190,1.01144068,2941.2,2940.5,3.402]
[1766647542390,0.91194068,2941.1,2940.5,3.402]
[1766647542589,3.402,2941.3,2940.5,3.402]
[1766647551897,0.00317789,2941.4,2940.5,3.402]
[1766647552201,3.40417789,2941.4,2940.5,3.402]
[1766647554406,1.01087479,2941.3,2940.5,3.402]
[1766647554607,1.01087479,2941.2,2940.5,3.402]
[1766647554807,3.40417789,2941.4,2940.5,3.402]
[1766647555007,1.01087479,2941.3,2940.5,3.402]
[1766647555207,1.01087479,2941.2,2940.5,3.402]
[1766647555402,3.40417789,2941.4,2940.5,3.402]
[1766647555602,1.01087089,2941.3,2940.5,3.402]
[1766647555804,1.01087089,2941.2,2940.5,3.402]
[1766647556000,3.40417789,2941.4,2940.5,3.402]
[1766647556197,1.01086896,2941.3,2940.5,3.402]
[1766647556402,1.01086896,2941.2,2940.5,3.402]
[1766647556605,3.40417789,2941.4,2940.5,3.402]
[1766647556808,1.01084005,2941.3,2940.5,3.402]
[1766647557006,1.01084005,2941.2,2940.5,3.402]
[1766647557205,3.40417789,2941.4,2940.5,3.402]
[1766647557405,1.01081989,2941.3,2940.5,3.402]
[1766647557603,1.01081989,2941.2,2940.5,3.402]
[1766647557803,3.40417789,2941.4,2940.5,3.402]
[1766647558004,1.01081989,2941.3,2940.5,3.402]
[1766647558205,1.01081989,2941.2,2940.5,3.402]
[1766647558405,3.40417789,2941.4,2940.5,3.402]
[1766647558605,1.01080389,2941.3,2940.5,3.402]
[1766647558813,1.01080389,2941.2,2940.5,3.402]
[1766647559010,3.40417789,2941.4,2940.5,3.402]
[1766647559211,1.00877789,2941.3,2940.5,3.402]
[1766647559510,1.00877789,2941.2,2940.5,3.402]
[1766647559709,3.40417789,2941.4,2940.5,3.402]
[1766647559911,1.00876883,2941.3,2940.5,3.402]
[1766647560106,1.00876883,2941.2,2940.5,3.402]
[1766647560306,3.40417789,2941.4,2940.5,3.402]
[1766647560515,1.0087765,2941.3,2940.5,3.402]
[1766647560707,1.0087765,2941.2,2940.5,3.402]
[1766647560909,3.40417789,2941.4,2940.5,3.402]
[1766647561108,1.00878532,2941.3,2940.5,3.402]
[1766647561310,1.00878532,2941.2,2940.5,3.402]
[1766647561606,3.40417789,2941.4,2940.5,3.402]
[1766647561806,1.00879257,2941.3,2940.5,3.402]
[1766647562010,1.00879257,2941.2,2940.5,3.402]
[1766647562316,3.40417789,2941.4,2940.5,3.402]
[1766647562615,1.00880098,2941.3,2940.5,3.402]
[1766647562813,1.00880098,2941.2,2940.5,3.402]
[1766647563114,3.40417789,2941.4,2940.5,3.402]
[1766647563415,1.00879233,2941.3,2940.5,3.402]
[1766647563616,1.00879233,2941.2,2940.5,3.402]
[1766647563816,3.40417789,2941.4,2940.5,3.402]
[1766647564017,1.00878719,2941.3,2940.5,3.402]
[1766647564219,1.00878719,2941.2,2940.5,3.402]
[1766647564517,3.40417789,2941.4,2940.5,3.402]
[1766647564715,1.00878558,2941.3,2940.5,3.402]
[1766647564918,1.00878558,2941.2,2940.5,3.402]
[1766647565111,3.40417789,2941.4,2940.5,3.402]
[1766647565312,1.00878291,2941.3,2940.5,3.402]
[1766647565618,1.00878291,2941.2,2940.5,3.402]
[1766647565817,3.40417789,2941.4,2940.5,3.402]
[1766647566020,1.00878477,2941.3,2940.5,3.402]
[1766647566219,1.00878477,2941.2,2940.5,3.402]
[1766647566420,3.40417789,2941.4,2940.5,3.402]
[1766647566621,1.00878761,2941.3,2940.5,3.402]
[1766647566921,1.00878761,2941.2,2940.5,3.402]
[1766647567223,3.40417789,2941.4,2940.5,3.402]
[1766647567408,1.00879279,2941.3,2940.5,3.402]
[1766647567613,1.00879279,2941.2,2940.5,3.402]
[1766647567813,3.40417789,2941.4,2940.5,3.402]
[1766647568017,1.00879279,2941.3,2940.5,3.402]
[1766647568216,1.00879279,2941.2,2940.5,3.402]
[1766647568417,3.40417789,2941.4,2940.5,3.402]
[1766647568614,1.00879865,2941.3,2940.5,3.402]
[1766647568814,1.00879865,2941.2,2940.5,3.402]
[1766647569022,3.40417789,2941.4,2940.5,3.402]
[1766647569223,1.00879866,2941.3,2940.5,3.402]
[1766647569422,1.00879866,2941.2,2940.5,3.402]
[1766647569625,3.40417789,2941.4,2940.5,3.402]
[1766647569825,1.00880691,2941.3,2940.5,3.402]
[1766647570016,1.00880691,2941.2,2940.5,3.402]
[1766647570216,3.40417789,2941.4,2940.5,3.402]
[1766647570418,1.00881769,2941.3,2940.5,3.402]
[1766647570724,1.00881769,2941.2,2940.5,3.402]
[1766647571024,3.40417789,2941.4,2940.5,3.402]
[1766647571225,1.00881769,2941.3,2940.5,3.402]
[1766647571418,1.00881769,2941.2,2940.5,3.402]
[1766647571623,3.40417789,2941.4,2940.5,3.402]
[1766647571821,1.00883137,2941.3,2940.5,3.402]
[1766647572020,1.00883137,2941.2,2940.5,3.402]
[1766647572221,3.40417789,2941.4,2940.5,3.402]
[1766647572523,1.00884311,2941.3,2940.5,3.402]
[1766647572722,1.00884311,2941.2,2940.5,3.402]
[1766647572921,3.40417789,2941.4,2940.5,3.402]
[1766647573119,1.0088431,2941.3,2940.5,3.402]
[1766647573321,1.0088431,2941.2,2940.5,3.402]
[1766647573518,3.40417789,2941.4,2940.5,3.402]
[1766647573719,1.00885694,2941.3,2940.5,3.402]
[1766647574014,1.00885694,2941.2,2940.5,3.402]
[1766647574217,3.40417789,2941.4,2940.5,3.402]
[1766647574418,1.00887471,2941.3,2940.5,3.402]
[1766647574619,1.00887471,2941.2,2940.5,3.402]
[1766647574824,3.40417789,2941.4,2940.5,3.402]
[1766647575025,1.00887471,2941.3,2940.5,3.402]
[1766647575225,1.00887471,2941.2,2940.5,3.402]
[1766647575528,3.40417789,2941.4,2940.5,3.402]
[1766647575731,1.00889628,2941.3,2940.5,3.402]
[1766647575929,1.00889628,2941.2,2940.5,3.402]
[1766647576128,3.40417789,2941.4,2940.5,3.402]
[1766647576330,1.00889628,2941.3,2940.5,3.402]
[1766647576524,1.00889628,2941.2,2940.5,3.402]
[1766647576725,3.40417789,2941.4,2940.5,3.402]
[1766647576922,1.00889661,2941.3,2940.5,3.402]
[1766647577124,1.00889661,2941.2,2940.5,3.402]
[1766647577421,3.40417789,2941.4,2940.5,3.402]
[1766647577622,1.00891285,2941.3,2940.5,3.402]
[1766647577823,1.00891285,2941.2,2940.5,3.402]
[1766647578023,3.40417789,2941.4,2940.5,3.402]
[1766647578224,1.00891214,2941.3,2940.5,3.402]
[1766647578431,1.00891214,2941.2,2940.5,3.402]
[1766647578632,3.40417789,2941.4,2940.5,3.402]
[1766647578833,1.00892514,2941.3,2940.5,3.402]
[1766647579131,1.00892514,2941.2,2940.5,3.402]
[1766647579320,3.40417789,2941.4,2940.5,3.402]
[1766647579525,1.00894168,2941.3,2940.5,3.402]
[1766647579725,1.00894168,2941.2,2940.5,3.402]
[1766647579926,3.40417789,2941.4,2940.5,3.402]
[1766647580134,1.00894166,2941.3,2940.5,3.402]
[1766647580324,1.00894166,2941.2,2940.5,3.402]
[1766647580525,3.40417789,2941.4,2940.5,3.402]
[1766647580726,1.0089615,2941.3,2940.5,3.402]
[1766647580927,1.0089615,2941.2,2940.5,3.402]
[1766647581127,3.40417789,2941.4,2940.5,3.402]
[1766647581325,1.0089615,2941.3,2940.5,3.402]
[1766647581527,1.0089615,2941.2,2940.5,3.402]
[1766647581729,3.40417789,2941.4,2940.5,3.402]
[1766647582026,1.00898443,2941.3,2940.5,3.402]
[1766647582221,1.00898443,2941.2,2940.5,3.402]
[1766647582428,3.40417789,2941.4,2940.5,3.402]
[1766647582730,1.00899017,2941.3,2940.5,3.402]
[1766647582934,1.00899017,2941.2,2940.5,3.402]
[1766647583133,3.40417789,2941.4,2940.5,3.402]
[1766647583334,1.00899017,2941.3,2940.5,3.402]
[1766647583632,1.00899017,2941.2,2940.5,3.402]
[1766647583833,3.40417789,2941.4,2940.5,3.402]
[1766647584131,1.00900135,2941.3,2940.5,3.402]
[1766647584338,1.00900135,2941.2,2940.5,3.402]
[1766647584535,3.40417789,2941.4,2940.5,3.402]
[1766647584837,1.0090053,2941.3,2940.5,3.402]
[1766647585034,1.0090053,2941.2,2940.5,3.402]
[1766647585239,3.40417789,2941.4,2940.5,3.402]
[1766647585435,1.00901321,2941.3,2940.5,3.402]
[1766647585626,1.00901321,2941.2,2940.5,3.402]
[1766647585830,3.40417789,2941.4,2940.5,3.402]
[1766647586030,1.00901321,2941.3,2940.5,3.402]
[1766647586234,1.00901321,2941.2,2940.5,3.402]
[1766647586532,3.40417789,2941.4,2940.5,3.402]
[1766647586732,1.0090086,2941.3,2940.5,3.402]
[1766647587043,1.0090086,2941.2,2940.5,3.402]
[1766647587337,3.40417789,2941.4,2940.5,3.402]
[1766647587536,1.00900448,2941.3,2940.5,3.402]
[1766647587744,1.00900448,2941.2,2940.5,3.402]
[1766647587935,3.40417789,2941.4,2940.5,3.402]
[1766647588135,1.00900448,2941.3,2940.5,3.402]
[1766647588335,1.00900448,2941.2,2940.5,3.402]
[1766647588531,3.40417789,2941.4,2940.5,3.402]
[1766647588731,1.009001,2941.3,2940.5,3.402]
[1766647588932,1.009001,2941.2,2940.5,3.402]
[1766647589131,3.40417789,2941.4,2940.5,3.402]
[1766647589338,1.00896096,2941.3,2940.5,3.402]
[1766647589539,1.00896096,2941.2,2940.5,3.402]
[1766647589731,3.40417789,2941.4,2940.5,3.402]
[1766647589931,1.00895684,2941.3,2940.5,3.402]
[1766647590132,1.00895684,2941.2,2940.5,3.402]
[1766647590334,3.40417789,2941.4,2940.5,3.402]
[1766647590634,1.00895466,2941.3,2940.5,3.402]
[1766647590836,3.40417789,2941.4,2940.5,3.402]
[1766647590837,1.00895466,2941.2,2940.5,3.402]
[1766647591036,3.40417789,2941.4,2940.5,3.402]
[1766647591236,1.00895442,2941.3,2940.5,3.402]
[1766647591435,1.00895442,2941.2,2940.5,3.402]
[1766647591632,3.40417789,2941.4,2940.5,3.402]
[1766647591833,1.00891802,2941.3,2940.5,3.402]
[1766647592039,1.00891802,2941.2,2940.5,3.402]
[1766647592341,3.40417789,2941.4,2940.5,3.402]
[1766647592539,1.00889986,2941.3,2940.5,3.402]
[1766647592836,1.00889986,2941.2,2940.5,3.402]
[1766647593038,3.40417789,2941.4,2940.5,3.402]
[1766647593239,1.00889986,2941.3,2940.5,3.402]
[1766647593432,0.00317789,2941.4,2940.5,3.402]
[1766647597441,3.401,2941.7,2940.5,3.402]
[1766647598345,3.40369858,2941.7,2940.5,3.402]
[1766647599643,3.40369858,2941.7,2940.5,4.38297955]
[1766647600533,3.40369858,2941.7,2940.5,3.402]
[1766647601646,3.40369858,2941.7,2940.5,4.39093306]
[1766647601839,3.40369858,2941.7,2940.5,3.402]
[1766647602034,3.40369858,2941.7,2940.5,4.37327362]
[1766647602353,3.40369858,2941.7,2940.5,3.402]
[1766647602540,3.40369858,2941.7,2940.5,4.37327362]
[1766647603043,0.00269858,2941.7,2940.5,4.37327362]
[1766647603349,0.00269858,2941.7,2940.5,3.402]
[1766647603849,0.00269858,2941.7,2940.5,4.37387856]
[1766647604248,0.00269858,2941.7,2940.5,3.402]
[1766647604851,0.00269858,2941.7,2940.5,4.37596328]
[1766647605549,0.00269858,2941.7,2940.5,3.402]
[1766647605750,0.00269858,2941.7,2940.5,4.3791523]
[1766647606950,0.00269858,2941.7,2940.5,3.402]
[1766647607152,0.00269858,2941.7,2940.5,4.38614529]
[1766647607952,0.00269858,2941.7,2940.5,3.402]
[1766647608154,0.00269858,2941.7,2940.5,4.38614529]
[1766647608355,0.00269858,2941.7,2940.5,4.38035439]
[1766647609257,0.00269858,2941.7,2940.5,3.402]
[1766647610255,0.00269858,2941.7,2940.5,4.35632803]
[1766647610563,0.00269858,2941.7,2940.5,3.402]
[1766647610860,0.00269858,2941.7,2940.5,4.39064532]
[1766647611363,0.00269858,2941.7,2940.5,3.402]
[1766647611561,0.00269858,2941.7,2940.5,3.57215]
[1766647612261,0.00269858,2941.7,2940.6,3.68319604]
[1766647612563,0.00269858,2941.7,2940.7,8.503]
[1766647612764,0.00269858,2941.7,2940.8,9.323]
[1766647613566,3.401,2942.0,2940.8,10.28475024]
[1766647613868,3.401,2942.0,2940.8,9.323]
[1766647614463,3.401,2942.0,2940.8,10.33521792]
[1766647614773,3.4042359,2942.0,2940.8,10.33521792]
[1766647615358,3.4042359,2942.0,2940.8,9.323]
[1766647616873,3.4042359,2942.0,2940.8,10.32716468]
[1766647618168,3.4042359,2942.0,2940.8,9.323]
[1766647618767,3.4042359,2942.0,2940.8,10.33341545]
[1766647619269,3.4042359,2942.0,2940.8,10.34715299]
[1766647619965,3.4042359,2942.0,2940.8,9.323]
[1766647620469,3.4042359,2942.0,2940.8,10.34715299]
[1766647620768,3.4042359,2942.0,2940.8,10.32313483]
[1766647621974,3.4042359,2942.0,2940.8,9.323]
[1766647622173,3.4042359,2942.0,2940.8,10.32685426]
[1766647622976,3.4042359,2942.0,2940.8,9.323]
[1766647623163,3.4042359,2942.0,2940.8,10.32685426]
[1766647624269,3.4042359,2942.0,2940.8,9.323]
[1766647624468,3.4042359,2942.0,2940.8,10.35266457]
[1766647625562,3.4042359,2942.0,2940.8,9.323]
[1766647626070,3.4042359,2942.0,2940.8,10.3274962]
[1766647628271,3.4042359,2942.0,2940.8,9.323]
[1766647628571,3.4042359,2942.0,2940.8,10.33119948]
[1766647628972,3.4042359,2942.0,2940.8,9.323]
[1766647629174,3.4042359,2942.0,2940.8,10.33119948]
[1766647629472,3.4042359,2942.0,2940.8,9.323]
[1766647629671,3.4042359,2942.0,2940.8,10.31637371]
[1766647630673,3.4042359,2942.0,2940.8,9.323]
[1766647630870,3.4042359,2942.0,2940.8,10.35172192]
[1766647631777,3.4042359,2942.0,2940.5,6.37762996]
[1766647632073,1.00536049,2941.9,2940.5,6.20747996]
[1766647632268,1.00536049,2941.8,2940.6,9.322]
[1766647632466,3.4042359,2942.0,2940.6,9.322]
[1766647632467,3.401,2941.7,2940.6,9.322]
[1766647632872,3.401,2941.7,2940.7,9.322]
[1766647635278,3.401,2941.7,2940.8,9.322]
[1766647635581,0.221,2941.6,2940.8,9.322]
[1766647642483,3.622,2941.6,2940.8,9.322]
[1766647654694,3.401,2941.6,2940.8,9.322]
[1766647657800,0.221,2941.5,2940.8,9.322]
[1766647665208,0.221,2941.5,2940.4,0.00510352]
[1766647665406,1.00473393,2941.4,2940.4,0.00510352]
[1766647665710,4.40573393,2941.3,2940.4,0.00510352]
[1766647665911,1.00473393,2941.2,2939.8,3.401]
[1766647666113,2.22974785,2941.2,2939.8,3.401]
[1766647666405,1.00473393,2941.1,2939.8,3.401]
[1766647666609,4.40573393,2941.0,2939.8,3.401]
[1766647666809,0.00510352,2940.7,2940.1,0.00510352]
[1766647667111,3.401,2940.6,2940.1,0.00510352]
[1766647672916,3.401,2940.6,2939.9,3.402]
[1766647673815,3.401,2940.6,2940.0,0.00510352]
[1766647679917,3.401,2940.6,2940.0,3.40710352]
[1766647690826,0.2212,2940.5,2940.0,3.40710352]
[1766647699327,3.11977049,2940.6,2940.0,3.40710352]
[1766647699530,0.00510352,2940.7,2940.0,3.40710352]
[1766647741377,4.40804056,2940.6,2940.0,0.00510352]
[1766647741673,3.402,2940.6,2940.0,0.00510352]
[1766647801118,3.402,2940.6,2939.9,2.46600352]
[1766647801323,3.402,2940.6,2939.1,4.28484044]
[1766647801518,4.82451134,2940.6,2939.2,8.654]
[1766647801719,1.00363284,2940.5,2939.0,4.28484044]
[1766647801930,4.82451134,2940.6,2939.0,4.28484044]
[1766647802131,1.00357989,2940.5,2939.5,0.00510352]
[1766647802326,1.00357989,2940.4,2939.2,1.21587035]
[1766647802530,4.40557989,2940.3,2939.2,3.402]
[1766647802729,3.67057989,2940.2,2939.2,2.8842]
[1766647802927,1.00357989,2940.1,2939.2,2.3664]
[1766647803230,3.402,2940.0,2939.4,0.00510352]
[1766647803530,4.8181059,2940.0,2939.2,2.3664]
[1766647803723,3.402,2940.0,2939.2,2.2668]
[1766647803924,4.8181059,2940.0,2939.2,1.9482]
[1766647804421,4.8181059,2940.0,2939.1,3.1431]
[1766647804732,4.85290141,2940.0,2939.1,2.6974412]
[1766647805132,4.85290141,2940.0,2939.1,0.0032412]
[1766647805733,4.84409995,2940.0,2939.3,0.00340232]
[1766647806830,4.82608384,2940.0,2939.3,0.00340232]
[1766647808634,4.83909337,2940.0,2939.3,0.00340232]
[1766647809540,3.402,2940.0,2939.3,0.00340232]
[1766647809736,4.83909337,2940.0,2939.3,0.00340232]
[1766647810037,3.402,2940.0,2939.3,0.00340232]
[1766647810840,4.80924163,2940.0,2939.3,0.00340232]
[1766647811040,4.83314586,2940.0,2939.3,0.00340232]
[1766647812541,4.84991983,2940.0,2939.3,0.00340232]
[1766647812733,4.84991983,2940.0,2939.3,3.40640232]
[1766647813339,3.402,2940.0,2939.3,3.40640232]
[1766647813538,4.84991983,2940.0,2939.3,3.40640232]
[1766647813741,3.402,2940.0,2939.3,3.40640232]
[1766647824048,3.402,2940.0,2939.4,3.403]
[1766647828648,3.402,2940.0,2939.3,0.00340232]
[1766647828852,3.402,2940.0,2939.4,3.403]
[1766647829254,3.402,2940.0,2939.3,0.00340232]
[1766647829453,3.402,2940.0,2939.4,3.403]
[1766647833655,3.402,2940.0,2939.3,0.00340232]
[1766647833855,3.402,2940.0,2939.3,3.40640232]
[1766647842855,3.402,2940.0,2939.3,0.00340232]
[1766647843060,3.402,2940.0,2939.3,3.40640232]
[1766647862881,1.45843671,2940.2,2939.3,3.40640232]
[1766647863084,4.86143671,2940.2,2939.3,3.40640232]
[1766647879396,1.00899359,2940.1,2939.3,3.40640232]
[1766647879591,4.86143671,2940.2,2939.3,3.40640232]
[1766647879788,1.008993,2940.1,2939.3,3.40640232]
[1766647880092,4.86143671,2940.2,2939.3,3.40640232]
[1766647880287,1.00899151,2940.1,2939.3,3.40640232]
[1766647880488,4.86143671,2940.2,2939.3,3.40640232]
[1766647880689,1.00900062,2940.1,2939.3,3.40640232]
[1766647880892,4.86143671,2940.2,2939.3,3.40640232]
[1766647881079,1.00900057,2940.1,2939.3,3.40640232]
[1766647881285,4.86143671,2940.2,2939.3,3.40640232]
[1766647881491,1.00901041,2940.1,2939.3,3.40640232]
[1766647881700,4.86143671,2940.2,2939.3,3.40640232]
[1766647881893,1.00901041,2940.1,2939.3,3.40640232]
[1766647882096,4.86143671,2940.2,2939.3,3.40640232]
[1766647882296,1.00901041,2940.1,2939.3,3.40640232]
[1766647882595,4.86143671,2940.2,2939.3,3.40640232]
[1766647882797,1.00902127,2940.1,2939.3,3.40640232]
[1766647882990,4.86143671,2940.2,2939.3,3.40640232]
[1766647883191,1.0090231,2940.1,2939.3,3.40640232]
[1766647883396,4.86143671,2940.2,2939.3,3.40640232]
[1766647883588,1.00903513,2940.1,2939.3,3.40640232]
[1766647883889,4.86143671,2940.2,2939.3,3.40640232]
[1766647884084,1.00903513,2940.1,2939.3,0.00340232]
[1766647884289,4.86143671,2940.2,2939.4,3.403]
[1766647884491,1.00904852,2940.1,2939.4,3.403]
[1766647884783,4.86143671,2940.2,2939.4,3.403]
[1766647884985,1.00904852,2940.1,2939.4,3.403]
[1766647885196,4.86143671,2940.2,2939.4,3.403]
[1766647885400,1.00904863,2940.1,2939.4,3.403]
[1766647885590,4.86143671,2940.2,2939.4,3.403]
[1766647885793,1.00906372,2940.1,2939.4,3.403]
[1766647886089,4.86143671,2940.2,2939.4,3.403]
[1766647886289,1.00906372,2940.1,2939.4,3.403]
[1766647886588,4.86143671,2940.2,2939.4,3.403]
[1766647886789,1.00908075,2940.1,2939.4,3.403]
[1766647887101,4.86143671,2940.2,2939.5,3.403]
[1766647887399,1.00907886,2940.1,2939.5,3.403]
[1766647887602,4.86143671,2940.2,2939.5,3.403]
[1766647887790,1.00909782,2940.1,2939.5,3.403]
[1766647887991,4.86143671,2940.2,2939.5,3.403]
[1766647888295,1.00909791,2940.1,2939.3,0.00340232]
[1766647888501,4.86143671,2940.2,2939.4,3.403]
[1766647888692,1.00912035,2940.1,2939.3,0.00340232]
[1766647888997,4.86143671,2940.2,2939.4,3.403]
[1766647889202,1.01087069,2940.1,2939.4,3.403]
[1766647889402,4.86143671,2940.2,2939.4,3.403]
[1766647889605,1.01089621,2940.1,2939.4,3.403]
[1766647889804,4.86143671,2940.2,2939.4,3.403]
[1766647890100,1.01089621,2940.1,2939.4,3.403]
[1766647890403,4.86143671,2940.2,2939.4,3.403]
[1766647890597,1.01089769,2940.1,2939.4,3.403]
[1766647890803,4.86143671,2940.2,2939.4,3.403]
[1766647890990,1.01089761,2940.1,2939.4,3.403]
[1766647891186,4.86143671,2940.2,2939.4,3.403]
[1766647891387,1.01089769,2940.1,2939.4,3.403]
[1766647891597,4.86143671,2940.2,2939.4,3.403]
[1766647891805,1.01092341,2940.1,2939.4,3.403]
[1766647892002,4.86143671,2940.2,2939.4,3.403]
[1766647892199,1.01092338,2940.1,2939.4,3.403]
[1766647892399,4.86143671,2940.2,2939.4,3.403]
[1766647892598,1.01095558,2940.1,2939.4,3.403]
[1766647892798,4.86143671,2940.2,2939.4,3.403]
[1766647892998,1.01095558,2940.1,2939.4,3.403]
[1766647893195,3.403,2940.2,2939.3,0.00340232]
[1766647893400,1.01096843,2940.1,2939.5,3.403]
[1766647893601,4.80538937,2940.2,2939.5,3.403]
[1766647893901,1.0109317,2940.1,2939.5,3.403]
[1766647894105,4.80542531,2940.2,2939.5,3.403]
[1766647894307,1.01093225,2940.1,2939.5,3.403]
[1766647894507,3.403,2940.2,2939.5,3.403]
[1766647894702,1.01088403,2940.1,2939.5,3.403]
[1766647894902,4.81067624,2940.2,2939.5,3.403]
[1766647895100,1.01088399,2940.1,2939.5,3.403]
[1766647895300,4.81067624,2940.2,2939.5,3.403]
[1766647895495,1.0108493,2940.1,2939.5,3.403]
[1766647895699,3.403,2940.2,2939.5,3.403]
[1766647895906,1.01085094,2940.1,2939.5,3.403]
[1766647896205,4.8181522,2940.2,2939.5,3.403]
[1766647896402,1.0108509,2940.1,2939.5,3.403]
[1766647896602,4.8181522,2940.2,2939.5,3.403]
[1766647896803,1.01082559,2940.1,2939.5,3.403]
[1766647897001,3.403,2940.2,2939.5,3.403]
[1766647897200,1.01082567,2940.1,2939.5,3.403]
[1766647897400,4.82718141,2940.2,2939.5,3.403]
[1766647897605,1.01080542,2940.1,2939.5,3.403]
[1766647897807,4.82718141,2940.2,2939.5,3.403]
[1766647898007,1.01080534,2940.1,2939.5,3.403]
[1766647898207,4.79096039,2940.2,2939.5,3.403]
[1766647898507,1.01080534,2940.1,2939.5,3.403]
[1766647898807,4.79096039,2940.2,2939.5,3.403]
[1766647898998,1.01078901,2940.1,2939.5,3.403]
[1766647899195,4.79096039,2940.2,2939.5,3.403]
[1766647899404,1.01078901,2940.1,2939.5,3.403]
[1766647899605,4.82669503,2940.2,2939.5,3.403]
[1766647899801,1.01077596,2940.1,2939.3,0.00340232]
[1766647900103,4.82669503,2940.2,2939.4,3.403]
[1766647900303,1.01077593,2940.1,2939.4,3.403]
[1766647900493,4.82669503,2940.2,2939.4,3.403]
[1766647900809,1.01076581,2940.1,2939.4,3.403]
[1766647900998,4.82669503,2940.2,2939.4,3.403]
[1766647901299,1.0107651,2940.1,2939.4,3.403]
[1766647901498,4.82669503,2940.2,2939.3,0.00340232]
[1766647901705,1.01075676,2940.1,2939.4,3.403]
[1766647901903,4.82669503,2940.2,2939.4,3.403]
[1766647902108,1.01075447,2940.1,2939.4,3.403]
[1766647902298,4.82669503,2940.2,2939.4,3.403]
[1766647902494,1.01074729,2940.1,2939.4,3.403]
[1766647902700,4.82669503,2940.2,2939.4,3.403]
[1766647902899,1.01074729,2940.1,2939.4,3.403]
[1766647903107,4.82669503,2940.2,2939.4,3.403]
[1766647903309,1.01074994,2940.1,2939.4,3.403]
[1766647903507,4.82669503,2940.2,2939.4,3.403]
[1766647903709,1.01074594,2940.1,2939.4,3.403]
[1766647903911,4.82669503,2940.2,2939.4,3.403]
[1766647904110,1.01074546,2940.1,2939.4,3.403]
[1766647904310,4.82669503,2940.2,2939.4,3.403]
[1766647904511,1.01074714,2940.1,2939.4,3.403]
[1766647904713,4.82669503,2940.2,2939.4,3.403]
[1766647904911,1.01074714,2940.1,2939.4,3.403]
[1766647905210,4.82669503,2940.2,2939.4,3.403]
[1766647905410,1.01074935,2940.1,2939.4,3.403]
[1766647905605,4.82669503,2940.2,2939.4,3.403]
[1766647905805,1.01074713,2940.1,2939.4,3.403]
[1766647906114,4.82669503,2940.2,2939.4,3.403]
[1766647906305,1.01074716,2940.1,2939.4,3.403]
[1766647906600,4.82669503,2940.2,2939.4,3.403]
[1766647906803,6.94075177,2940.1,2939.4,3.403]
[1766647907004,5.93,2940.1,2939.4,3.403]
[1766647912415,3.403,2940.0,2939.4,3.403]
[1766647915918,3.403,2940.0,2939.4,3.533]
[1766647933732,3.403,2940.0,2939.5,0.13]
[1766647939241,3.403,2940.0,2939.4,3.533]
[1766647939838,3.403,2940.0,2939.4,3.403]
[1766647955854,5.93,2940.1,2939.4,3.403]
[1766647967475,5.93,2940.1,2939.4,3.533]
[1766647992505,5.93,2940.1,2939.4,0.13]
[1766647992693,5.93,2940.1,2939.4,3.533]
[1766647994801,5.93,2940.1,2939.4,3.3737]
[1766647995004,1.00948935,2940.0,2939.4,2.9954]
[1766647995304,5.93,2940.1,2939.4,2.9954]
[1766647995505,1.00932236,2940.0,2939.4,2.9954]
[1766647995704,5.93,2940.1,2939.4,2.9954]
[1766647995905,1.0093224,2940.0,2939.4,2.9954]
[1766647996094,5.93,2940.1,2939.4,2.9954]
[1766647996299,1.00924806,2940.0,2939.4,2.9954]
[1766647996500,5.93,2940.1,2939.4,2.9954]
[1766647996806,1.00925023,2940.0,2939.4,2.9954]
[1766647997006,5.93,2940.1,2939.4,2.9954]
[1766647997206,1.00920578,2940.0,2939.4,2.9954]
[1766647997409,5.93,2940.1,2939.4,2.9954]
[1766647997610,1.00920054,2940.0,2939.4,2.9954]
[1766647997904,5.93,2940.1,2939.4,2.9954]
[1766647998101,1.0092005,2940.0,2939.4,2.9954]
[1766647998297,3.403,2940.0,2939.4,2.9954]
[1766647999803,3.403,2940.0,2939.3,0.00340232]
[1766647999804,3.403,2940.0,2939.1,1.16630308]
[1766648000011,1.0090703,2939.9,2939.1,1.16630308]
[1766648000210,1.00882465,2939.8,2938.8,0.0008]
[1766648000509,10.56263689,2939.7,2938.8,3.4038]
[1766648000908,9.331,2939.7,2938.8,3.4038]
[1766648001108,9.331,2939.7,2938.8,3.40789302]